bitfinex-derivatives/quotes_SOLF0:USTF0_20250113
["timestamp","ask_amount","ask_price","bid_price","bid_amount"]
[1736794291466,2.8394,176.17,176.12,2.8402]
[1736794291681,1.6087,176.19,176.08,36.19803129]
[1736794293781,3.344,176.2,176.11,36.19803129]
[1736794293976,3.344,176.2,176.11,42.73803129]
[1736794294286,1.5973,176.24,176.14,36.19803129]
[1736794294675,1.5973,176.24,176.18,2.8391]
[1736794294879,36.19803129,176.28,176.18,2.8391]
[1736794295078,3.3532,176.29,176.14,36.19803129]
[1736794295784,2.8381,176.25,176.21,2.8387]
[1736794296084,3.3532,176.29,176.21,2.8387]
[1736794296573,3.3532,176.29,176.18,6.54]
[1736794296970,2.8388,176.21,176.18,6.54]
[1736794298179,3.3532,176.29,176.18,6.54]
[1736794298379,5.6726,176.37,176.23,36.19803129]
[1736794298380,36.19803129,176.37,176.23,36.19803129]
[1736794298580,1.7138,176.36,176.23,36.19803129]
[1736794298780,1.7138,176.36,176.26,36.19803129]
[1736794298977,1.7138,176.36,176.26,42.73803129]
[1736794299177,2.8375,176.29,176.26,42.73803129]
[1736794299378,1.7138,176.36,176.26,6.54]
[1736794299778,1.7138,176.36,176.21,6.54]
[1736794300079,2.8371,176.32,176.23,2.8384]
[1736794300276,1.7138,176.36,176.23,2.8384]
[1736794300783,36.19803129,176.34,176.21,6.54]
[1736794300983,36.19803129,176.31,176.17,36.19803129]
[1736794301187,1.6376,176.3,176.17,36.19803129]
[1736794301693,1.6376,176.3,176.16,6.54]
[1736794301983,36.19803129,176.28,176.13,133.69803129]
[1736794302174,36.19803129,176.28,176.13,97.5]
[1736794302175,36.19803129,176.25,176.13,97.5]
[1736794302374,36.19803129,176.22,176.07,36.19803129]
[1736794302584,1.615,176.21,176.07,36.19803129]
[1736794302786,2.8403,176.12,176.07,36.19803129]
[1736794302977,36.19803129,176.19,176.05,3.2127]
[1736794303180,8.175,176.21,176.07,36.19803129]
[1736794303378,2.8402,176.13,176.07,36.19803129]
[1736794303581,2.8402,176.13,176.07,39.03893129]
[1736794303987,2.8399,176.14,176.08,2.8407]
[1736794304183,1.615,176.21,176.07,36.19803129]
[1736794304889,1.615,176.21,176.1,36.19803129]
[1736794305588,2.8391,176.19,176.14,2.8398]
[1736794305890,8.1356,176.24,176.14,2.8398]
[1736794306087,8.1356,176.24,176.13,36.19803129]
[1736794306284,1.5756,176.24,176.13,36.19803129]
[1736794306788,2.8389,176.21,176.16,2.8394]
[1736794307289,2.8389,176.2,176.15,2.8397]
[1736794307483,2.8389,176.2,176.13,36.19803129]
[1736794307682,1.5756,176.24,176.13,36.19803129]
[1736794308087,1.5756,176.24,176.16,36.19803129]
[1736794308290,1.5993,176.29,176.19,36.19803129]
[1736794308591,3.2784,176.35,176.22,36.19803129]
[1736794308986,2.8375,176.29,176.22,36.19803129]
[1736794309293,3.2784,176.35,176.22,36.19803129]
[1736794310391,36.19803129,176.34,176.2,3.4098]
[1736794310591,36.19803129,176.31,176.19,6.54]
[1736794311295,42.71803129,176.31,176.19,6.54]
[1736794311490,2.8386,176.22,176.17,2.8394]
[1736794311694,42.71803129,176.31,176.16,36.19803129]
[1736794312296,42.71803129,176.31,176.15,1.7029]
[1736794312504,36.19803129,176.28,176.14,97.46]
[1736794312696,1.7301,176.27,176.14,97.46]
[1736794313096,1.5675,176.26,176.14,97.46]
[1736794313495,1.7245,176.25,176.14,97.46]
[1736794313896,37.92253129,176.25,176.14,97.46]
[1736794314094,6.52,176.24,176.1,36.19803129]
[1736794314294,36.19803129,176.19,176.04,133.63803129]
[1736794314495,1.6574,176.18,176.04,133.63803129]
[1736794314899,36.19803129,176.16,176.04,97.44]
[1736794315102,1.6553,176.15,176.04,97.44]
[1736794315505,2.8413,176.05,176.04,97.44]
[1736794315802,1.6553,176.15,176.04,97.44]
[1736794316002,1.6553,176.15,175.99,4.7766]
[1736794316204,1.6553,176.15,176.0,2.8421]
[1736794316595,2.8408,176.09,176.03,2.8416]
[1736794316801,1.6553,176.15,175.99,4.7766]
[1736794317002,1.6553,176.15,175.99,11.2966]
[1736794317202,2.841,176.08,176.02,2.8418]
[1736794317397,1.6553,176.15,176.01,36.19803129]
[1736794319708,2.8409,176.09,176.03,2.8415]
[1736794320408,1.6553,176.15,176.01,36.19803129]
[1736794320609,2.8414,176.05,176.0,2.8421]
[1736794320804,36.19803129,176.13,175.99,11.2966]
[1736794321007,2.8401,176.13,176.08,2.8408]
[1736794321513,1.6574,176.18,176.09,2.8407]
[1736794321514,2.8399,176.14,176.09,2.8407]
[1736794321706,1.6574,176.18,176.07,42.71803129]
[1736794321909,36.19803129,176.16,176.01,42.71803129]
[1736794322110,36.19803129,176.13,176.01,6.52]
[1736794322409,1.7148,176.12,175.99,4.7766]
[1736794322812,1.7148,176.12,175.99,3.1953]
[1736794323315,36.19803129,176.1,175.96,6.52]
[1736794323517,2.8424,175.99,175.94,101.8759]
[1736794323810,36.19803129,176.07,175.94,97.46]
[1736794324004,1.5788,176.06,175.94,97.46]
[1736794324206,1.5788,176.06,175.95,36.19803129]
[1736794324405,1.6398,176.09,175.98,36.19803129]
[1736794324717,2.8411,176.07,176.01,2.8419]
[1736794324915,1.7148,176.12,175.99,1.5865]
[1736794325112,2.8409,176.08,176.03,2.8415]
[1736794325318,1.6398,176.14,176.01,36.19803129]
[1736794325517,36.19803129,176.19,176.04,36.19803129]
[1736794325723,8.1866,176.2,176.07,36.19803129]
[1736794325912,8.1866,176.2,176.08,1.5865]
[1736794326314,1.6666,176.2,176.08,1.5865]
[1736794326615,2.8399,176.15,176.1,2.8405]
[1736794326814,1.6666,176.2,176.08,1.5865]
[1736794327013,36.19803129,176.19,176.08,1.5865]
[1736794327315,36.19803129,176.19,176.05,6.52]
[1736794327718,2.8411,176.07,176.05,6.52]
[1736794327906,2.8411,176.07,176.01,36.19803129]
[1736794328113,36.19803129,176.16,176.01,36.19803129]
[1736794329721,36.19803129,176.16,176.05,2.8413]
[1736794329722,2.8406,176.1,176.05,2.8413]
[1736794330015,1.6666,176.2,176.04,36.19803129]
[1736794330211,1.6666,176.2,176.07,36.19803129]
[1736794330518,3.2186,176.22,176.1,36.19803129]
[1736794331312,3.2186,176.22,176.14,2.8398]
[1736794331313,2.8393,176.18,176.14,2.8398]
[1736794331516,36.19803129,176.25,176.1,36.19803129]
[1736794331918,2.8388,176.21,176.14,2.8399]
[1736794332214,36.19803129,176.25,176.1,36.19803129]
[1736794332420,1.7228,176.26,176.13,36.19803129]
[1736794332911,1.7228,176.26,176.14,6.52]
[1736794333112,2.8386,176.22,176.18,2.8392]
[1736794333324,1.7228,176.26,176.14,6.52]
[1736794333911,1.587,176.28,176.14,6.52]
[1736794334114,2.8387,176.22,176.18,2.8392]
[1736794334313,2.8387,176.22,176.14,6.52]
[1736794334718,2.8387,176.22,176.17,2.8393]
[1736794335120,1.587,176.28,176.14,6.52]
[1736794335313,1.587,176.28,176.16,2.8396]
[1736794335518,3.282,176.28,176.14,6.52]
[1736794335723,2.8391,176.2,176.16,2.8396]
[1736794336022,2.8391,176.2,176.14,6.52]
[1736794336724,36.19803129,176.25,176.1,42.69803129]
[1736794337120,36.19803129,176.25,176.1,45.53843129]
[1736794337320,3.282,176.28,176.08,102.4154]
[1736794337321,36.19803129,176.22,176.08,102.4154]
[1736794337724,2.84,176.14,176.09,2.8407]
[1736794337923,36.19803129,176.22,176.08,100.7826]
[1736794338120,36.19803129,176.19,176.08,100.7826]
[1736794338324,3.2934,176.18,176.08,99.2067]
[1736794338529,4.9599,176.18,176.08,99.2067]
[1736794338726,3.2934,176.18,176.08,99.2067]
[1736794338926,1.6773,176.18,176.11,2.8403]
[1736794339225,36.19803129,176.22,176.11,2.8403]
[1736794339420,2.8395,176.17,176.11,2.8403]
[1736794339628,2.8395,176.17,176.08,99.2067]
[1736794339629,1.6269,176.21,176.08,99.2067]
[1736794340628,36.19803129,176.19,176.08,99.2067]
[1736794341032,36.19803129,176.16,176.03,3.2607]
[1736794341230,1.7041,176.15,176.03,3.2607]
[1736794341629,36.19803129,176.13,175.98,133.65803129]
[1736794341830,1.5938,176.12,175.98,133.65803129]
[1736794342028,2.8412,176.06,176.02,2.8417]
[1736794342227,1.5938,176.12,176.01,36.19803129]
[1736794343030,1.7041,176.15,176.01,36.19803129]
[1736794343229,36.19803129,176.13,175.98,97.46]
[1736794343433,36.19803129,176.1,175.98,97.46]
[1736794343926,2.8416,176.04,175.99,2.8423]
[1736794344126,2.8416,176.04,175.98,97.46]
[1736794344536,2.8416,176.04,175.99,2.8423]
[1736794344835,36.19803129,176.1,175.99,2.8423]
[1736794344836,2.8417,176.03,175.99,2.8423]
[1736794345928,36.19803129,176.1,175.98,97.46]
[1736794346234,36.19803129,176.07,175.96,3.3534]
[1736794346434,36.19803129,176.04,175.9,36.19803129]
[1736794346731,36.19803129,176.01,175.89,4.9281]
[1736794347134,2.8433,175.93,175.89,4.9281]
[1736794347531,36.19803129,176.01,175.89,4.9281]
[1736794347831,2.8432,175.94,175.89,7.7719]
[1736794348026,36.19803129,176.01,175.89,7.7719]
[1736794348427,2.8426,175.98,175.89,7.7719]
[1736794348633,36.19803129,176.01,175.89,7.7719]
[1736794348634,36.19803129,176.01,175.89,4.9281]
[1736794349028,2.8432,175.94,175.89,4.9281]
[1736794349229,3.2626,176.06,175.92,36.19803129]
[1736794349630,36.19803129,176.04,175.89,41.12613129]
[1736794349834,36.19803129,176.01,175.89,3.3589]
[1736794350036,1.5688,176.0,175.89,3.3589]
[1736794350638,36.19803129,175.98,175.88,97.5]
[1736794350834,1.6618,175.97,175.88,97.5]
[1736794351639,2.8436,175.92,175.88,97.5]
[1736794351838,1.6618,175.97,175.88,97.5]
[1736794352433,1.5688,176.0,175.9,2.8437]
[1736794352628,1.5688,176.0,175.89,36.19803129]
[1736794353030,1.5688,176.0,175.88,97.5]
[1736794353343,36.19803129,175.98,175.88,97.5]
[1736794353843,36.19803129,175.98,175.84,5.0488]
[1736794354343,2.8437,175.91,175.85,2.8445]
[1736794354839,2.8434,175.93,175.87,2.8441]
[1736794355041,1.5714,175.97,175.84,5.0488]
[1736794355440,1.6533,175.96,175.85,2.8445]
[1736794355939,1.5688,176.0,175.86,36.19803129]
[1736794356140,1.5688,176.0,175.9,2.8437]
[1736794356737,2.843,175.95,175.9,2.8437]
[1736794357040,1.5688,176.0,175.86,36.19803129]
[1736794357241,2.8427,175.97,175.89,36.19803129]
[1736794357434,1.6533,176.02,175.9,6.5]
[1736794357632,1.6533,176.02,175.92,39.04133129]
[1736794357836,1.6533,176.02,175.92,36.19803129]
[1736794358243,2.8426,175.98,175.94,2.8431]
[1736794358644,44.39113129,176.07,175.96,2.8427]
[1736794358837,9.8278,176.07,175.95,36.19803129]
[1736794359041,1.6347,176.07,175.95,36.19803129]
[1736794359239,1.6347,176.07,175.98,2.8424]
[1736794359441,1.6347,176.07,175.95,36.19803129]
[1736794359746,1.6347,176.07,175.97,2.8426]
[1736794359944,1.6347,176.07,175.95,36.19803129]
[1736794360347,39.45713129,176.07,175.93,5.0166]
[1736794360544,36.19803129,176.04,175.89,36.19803129]
[1736794360744,36.19803129,176.01,175.87,1.6417]
[1736794360945,2.8434,175.93,175.88,2.8439]
[1736794361140,36.19803129,176.01,175.87,1.6417]
[1736794361547,2.8427,175.97,175.9,2.8436]
[1736794361749,36.19803129,176.01,175.9,2.8436]
[1736794362152,2.8431,175.94,175.9,2.8436]
[1736794362547,36.19803129,176.01,175.87,1.6417]
[1736794362743,2.8438,175.9,175.87,1.6417]
[1736794362947,36.19803129,175.98,175.85,1.6835]
[1736794363254,2.8439,175.9,175.85,4.528]
[1736794363552,5.0687,175.97,175.85,1.6835]
[1736794364353,5.0687,175.97,175.86,2.8444]
[1736794364548,5.0687,175.97,175.85,1.6835]
[1736794364748,36.19803129,175.95,175.81,2.8452]
[1736794365150,2.8448,175.84,175.77,36.19803129]
[1736794365454,36.19803129,175.92,175.77,36.19803129]
[1736794365749,2.8454,175.81,175.76,1.7126]
[1736794366147,2.845,175.83,175.76,1.7126]
[1736794366348,3.3049,175.88,175.76,1.7126]
[1736794366550,3.3049,175.88,175.79,2.8454]
[1736794367254,1.6489,175.88,175.81,2.8451]
[1736794367454,1.6489,175.88,175.77,36.19803129]
[1736794367959,1.6489,175.88,175.77,42.69803129]
[1736794368651,2.8448,175.84,175.8,2.8453]
[1736794368956,1.6489,175.88,175.77,42.69803129]
[1736794369350,2.8449,175.84,175.79,2.8454]
[1736794370355,2.8446,175.85,175.77,42.69803129]
[1736794370550,37.85403129,175.95,175.8,36.19803129]
[1736794370758,39.45963129,175.95,175.81,1.6112]
[1736794370954,2.8442,175.88,175.83,2.8449]
[1736794371350,39.45963129,175.95,175.81,1.6112]
[1736794371556,2.8448,175.84,175.81,1.6112]
[1736794372356,2.8446,175.85,175.81,4.4563]
[1736794373357,36.19803129,175.92,175.77,36.19803129]
[1736794373560,36.19803129,175.89,175.75,1.5912]
[1736794373862,2.8456,175.79,175.75,4.4374]
[1736794374159,2.8456,175.79,175.75,1.5912]
[1736794374860,2.8458,175.78,175.73,1.5891]
[1736794375051,2.8458,175.78,175.72,8.1844]
[1736794375458,2.846,175.76,175.71,6.74547758]
[1736794375758,36.19803129,175.83,175.71,6.2037]
[1736794375963,2.8465,175.74,175.71,3.3569]
[1736794376358,36.19803129,175.83,175.71,3.3569]
[1736794376563,2.8462,175.75,175.71,3.3569]
[1736794377361,36.19803129,175.83,175.71,2.8467]
[1736794377557,2.8467,175.73,175.7,97.56]
[1736794377755,36.19803129,175.83,175.7,97.56]
[1736794378158,2.8465,175.74,175.7,97.56]
[1736794378866,2.8465,175.74,175.7,100.4069]
[1736794379065,36.19803129,175.8,175.63,191.0]
[1736794379265,36.19803129,175.76,175.63,2.8481]
[1736794379467,2.8476,175.67,175.63,2.8481]
[1736794379861,3.3358,175.75,175.59,42.65803129]
[1736794379862,1.7346,175.75,175.62,98.25713235]
[1736794380061,37.91293129,175.79,175.65,36.19803129]
[1736794380266,37.91293129,175.79,175.66,9.7018]
[1736794380862,36.19803129,175.76,175.66,6.46]
[1736794381064,36.19803129,175.73,175.62,62.05910106]
[1736794381264,1.7122,175.72,175.62,62.05910106]
[1736794381458,1.7122,175.72,175.62,64.90730106]
[1736794381766,36.19803129,175.76,175.62,98.25713235]
[1736794381963,1.7122,175.78,175.65,36.19803129]
[1736794382164,36.19803129,175.82,175.68,36.19803129]
[1736794382368,6.46,175.84,175.68,36.19803129]
[1736794382369,4.9714,175.85,175.69,3.23]
[1736794382665,2.8457,175.79,175.71,36.19803129]
[1736794382863,4.9714,175.85,175.71,36.19803129]
[1736794383064,4.9714,175.85,175.76,2.8459]
[1736794383268,4.9714,175.85,175.73,6.46]
[1736794384364,2.8453,175.81,175.76,2.846]
[1736794384870,4.9714,175.85,175.73,6.46]
[1736794385864,2.846,175.76,175.73,6.46]
[1736794386063,4.9714,175.85,175.73,6.46]
[1736794386266,4.9714,175.85,175.76,2.8459]
[1736794386267,2.8454,175.81,175.76,2.8459]
[1736794386466,4.9714,175.85,175.76,2.8459]
[1736794387068,4.9714,175.85,175.73,6.46]
[1736794387069,4.9714,175.85,175.75,2.8462]
[1736794387263,4.9714,175.85,175.69,3.23]
[1736794387470,36.19803129,175.82,175.69,3.23]
[1736794387769,36.19803129,175.82,175.66,99.3592]
[1736794387770,36.19803129,175.79,175.66,99.3592]
[1736794388167,2.8471,175.7,175.66,99.3592]
[1736794388375,2.8471,175.7,175.66,97.66]
[1736794388874,10.6608,175.85,175.68,36.19803129]
[1736794388875,4.9714,175.85,175.68,36.19803129]
[1736794389072,4.9714,175.85,175.73,36.19803129]
[1736794389269,2.8454,175.81,175.76,2.846]
[1736794389470,4.9714,175.85,175.76,2.846]
[1736794390272,2.8451,175.82,175.74,6.5]
[1736794390469,4.9714,175.85,175.74,6.5]
[1736794390862,4.9714,175.85,175.74,9.3462]
[1736794391063,36.19803129,175.91,175.76,36.19803129]
[1736794391266,3.3666,175.93,175.79,36.19803129]
[1736794391773,3.3666,175.93,175.8,1.6058]
[1736794391971,2.8439,175.9,175.85,2.8445]
[1736794392178,2.8439,175.9,175.81,6.5]
[1736794392372,3.3666,175.93,175.81,6.5]
[1736794393468,2.8446,175.85,175.81,6.5]
[1736794393875,36.19803129,175.91,175.76,36.19803129]
[1736794394173,36.19803129,175.91,175.77,6.5]
[1736794394770,42.69803129,175.91,175.77,6.5]
[1736794394972,36.19803129,175.88,175.74,3.2922]
[1736794395166,6.5,175.91,175.74,3.2922]
[1736794395167,2.8451,175.82,175.74,3.2922]
[1736794395374,36.19803129,175.85,175.74,3.2922]
[1736794395675,1.6429,175.87,175.74,3.2922]
[1736794395871,2.8447,175.85,175.79,2.8454]
[1736794396064,1.6429,175.87,175.79,2.8454]
[1736794396569,1.6429,175.87,175.76,36.19803129]
[1736794397570,1.6429,175.87,175.8,2.8453]
[1736794398176,2.8446,175.85,175.8,2.8453]
[1736794398374,1.6429,175.87,175.8,2.8453]
[1736794398972,1.6429,175.87,175.74,3.2922]
[1736794399177,36.19803129,175.85,175.7,36.19803129]
[1736794399478,8.179,175.84,175.69,5.0463]
[1736794399675,9.8499,175.84,175.69,5.0463]
[1736794399986,36.19803129,175.82,175.67,97.66]
[1736794400178,36.19803129,175.79,175.67,97.66]
[1736794400375,36.19803129,175.76,175.65,7.83735084]
[1736794400678,1.719,175.78,175.59,36.19803129]
[1736794400679,36.19803129,175.73,175.59,36.19803129]
[1736794401678,2.8472,175.69,175.64,2.8479]
[1736794402379,2.8477,175.66,175.62,2.8482]
[1736794402580,9.8499,175.75,175.59,36.19803129]
[1736794402782,36.19803129,175.73,175.59,36.19803129]
[1736794403080,2.8479,175.65,175.6,2.8485]
[1736794403773,2.8479,175.65,175.59,36.19803129]
[1736794403977,36.19803129,175.73,175.61,2.8483]
[1736794404575,2.8478,175.66,175.62,2.8483]
[1736794404883,9.8499,175.75,175.59,36.19803129]
[1736794405083,2.8472,175.69,175.64,2.8478]
[1736794406282,2.8474,175.68,175.64,2.8478]
[1736794407278,3.3699,175.75,175.59,36.19803129]
[1736794407279,36.19803129,175.73,175.59,36.19803129]
[1736794407675,3.3699,175.75,175.62,36.19803129]
[1736794407879,3.3699,175.75,175.62,42.65803129]
[1736794408383,1.719,175.78,175.72,2.8466]
[1736794409184,3.3738,175.81,175.71,36.19803129]
[1736794409586,1.6426,175.81,175.71,36.19803129]
[1736794409793,2.8454,175.8,175.71,36.19803129]
[1736794410285,2.8454,175.8,175.75,2.8461]
[1736794410982,1.6426,175.81,175.71,36.19803129]
[1736794411184,1.6426,175.81,175.7,3.3151]
[1736794411585,1.6426,175.81,175.69,8.0718]
[1736794411887,36.19803129,175.77,175.63,3.2728]
[1736794412183,2.847,175.7,175.63,3.2728]
[1736794412790,2.847,175.7,175.66,2.8476]
[1736794414687,1.5851,175.76,175.63,1.6986]
[1736794414881,36.19803129,175.74,175.62,8.1403]
[1736794415187,2.8467,175.72,175.67,2.8474]
[1736794415386,2.8467,175.72,175.62,44.33833129]
[1736794416090,2.8465,175.73,175.62,44.33833129]
[1736794416389,1.5851,175.76,175.68,2.8473]
[1736794416587,2.8467,175.73,175.68,2.8473]
[1736794416788,1.5851,175.76,175.68,2.8473]
[1736794416988,2.847,175.71,175.66,2.8475]
[1736794417288,1.5851,175.76,175.66,2.8475]
[1736794417685,2.847,175.71,175.66,2.8475]
[1736794418190,2.847,175.7,175.66,2.8475]
[1736794418689,2.847,175.7,175.67,2.8475]
[1736794420089,1.5851,175.76,175.62,44.33833129]
[1736794420396,2.8471,175.7,175.66,2.8476]
[1736794420690,1.5851,175.76,175.62,44.33833129]
[1736794420888,1.5851,175.76,175.62,37.87833129]
[1736794421093,36.19803129,175.74,175.59,37.77223129]
[1736794421295,36.19803129,175.71,175.58,1.6411]
[1736794421591,2.8478,175.66,175.58,1.6411]
[1736794421895,3.2564,175.7,175.59,36.19803129]
[1736794422194,2.8472,175.69,175.59,36.19803129]
[1736794422494,1.6629,175.7,175.59,36.19803129]
[1736794423193,1.6629,175.7,175.58,1.6411]
[1736794423194,2.847,175.7,175.67,2.8475]
[1736794423590,3.2564,175.75,175.67,2.8475]
[1736794423790,2.847,175.71,175.67,2.8475]
[1736794423985,3.2564,175.75,175.64,6.42]
[1736794424186,2.8467,175.73,175.69,2.8472]
[1736794424384,3.2564,175.75,175.69,2.8472]
[1736794424585,3.2564,175.75,175.65,22.40807033]
[1736794424786,2.8462,175.75,175.65,22.40807033]
[1736794424991,3.3845,175.8,175.68,22.40807033]
[1736794425287,2.8462,175.75,175.68,22.40807033]
[1736794425994,2.8461,175.76,175.72,2.8467]
[1736794426592,2.8459,175.77,175.73,2.8464]
[1736794426792,2.8459,175.77,175.68,22.40807033]
[1736794427185,2.8457,175.78,175.74,2.8463]
[1736794427392,3.3845,175.8,175.66,3.2856]
[1736794427393,1.6949,175.83,175.71,28.80807033]
[1736794427592,25.71067033,175.89,175.74,22.40807033]
[1736794427787,1.6414,175.88,175.81,2.8452]
[1736794427984,1.6414,175.88,175.79,6.42]
[1736794428184,2.8443,175.87,175.83,2.8448]
[1736794428390,3.3026,175.89,175.8,22.40807033]
[1736794428593,1.7054,175.89,175.8,22.40807033]
[1736794428794,3.2386,175.94,175.8,22.40807033]
[1736794428996,4.944,175.94,175.8,22.40807033]
[1736794429400,2.8442,175.88,175.79,42.76311205]
[1736794429794,4.944,175.94,175.79,42.76311205]
[1736794429993,2.8437,175.91,175.86,2.8444]
[1736794430287,4.944,175.94,175.82,36.34311205]
[1736794430499,3.3026,175.94,175.82,36.34311205]
[1736794430702,38.05161205,176.0,175.85,36.34311205]
[1736794430893,38.05161205,176.0,175.85,6.4]
[1736794430894,36.34311205,175.97,175.85,6.4]
[1736794431197,36.34311205,175.94,175.83,1.7172]
[1736794431697,36.34311205,175.94,175.8,6.42]
[1736794432599,2.8436,175.91,175.86,2.8444]
[1736794433201,2.8432,175.94,175.89,2.8439]
[1736794433403,41.35961205,176.0,175.86,3.3569]
[1736794433796,36.34311205,175.97,175.86,3.3569]
[1736794433994,36.34311205,175.97,175.85,2.8445]
[1736794434197,2.844,175.89,175.85,2.8445]
[1736794435399,36.34311205,175.97,175.82,36.34311205]
[1736794435600,2.8441,175.88,175.8,200.7769]
[1736794436001,2.8441,175.88,175.83,2.8448]
[1736794436703,2.8443,175.87,175.83,2.8448]
[1736794436901,36.34311205,175.94,175.83,2.8448]
[1736794437303,36.34311205,175.94,175.8,200.7769]
[1736794437304,36.34311205,175.94,175.8,9.7769]
[1736794437502,36.34311205,175.94,175.81,2.8451]
[1736794437699,36.34311205,175.94,175.8,9.7769]
[1736794437899,2.8444,175.87,175.82,2.845]
[1736794438199,36.34311205,175.94,175.82,2.845]
[1736794438401,36.34311205,175.94,175.8,3.3569]
[1736794438600,2.8444,175.86,175.81,2.8452]
[1736794439802,36.34311205,175.94,175.81,2.8452]
[1736794439999,36.34311205,175.91,175.76,36.34311205]
[1736794440201,36.34311205,175.88,175.73,36.34311205]
[1736794440403,36.34311205,175.88,175.72,2.8465]
[1736794440404,2.8459,175.77,175.72,2.8465]
[1736794440598,36.34311205,175.85,175.72,2.8465]
[1736794440904,36.34311205,175.85,175.71,3.3411]
[1736794441299,36.34311205,175.85,175.75,2.8462]
[1736794442499,2.8454,175.81,175.75,2.8461]
[1736794442696,2.8454,175.81,175.71,3.3411]
[1736794442900,42.74311205,175.88,175.73,36.34311205]
[1736794443100,5.0477,175.9,175.71,3.3411]
[1736794443101,5.0477,175.9,175.82,2.845]
[1736794443302,5.0477,175.9,175.79,36.34311205]
[1736794443502,2.8445,175.86,175.79,36.34311205]
[1736794443703,2.8445,175.86,175.81,2.8452]
[1736794443904,5.0477,175.9,175.79,36.34311205]
[1736794444099,2.8443,175.87,175.79,36.34311205]
[1736794444296,5.0477,175.9,175.79,36.34311205]
[1736794444502,1.7167,175.9,175.82,36.34311205]
[1736794445408,2.844,175.89,175.82,36.34311205]
[1736794445606,1.7167,175.9,175.82,36.34311205]
[1736794445808,3.476,175.94,175.82,36.34311205]
[1736794446707,3.476,175.94,175.8,1.6163]
[1736794446907,36.34311205,175.92,175.76,36.34311205]
[1736794447102,2.8451,175.82,175.79,2.8454]
[1736794447315,36.34311205,175.86,175.74,6.4]
[1736794447508,4.9367,175.85,175.74,6.4]
[1736794447704,4.9367,175.85,175.72,4.9393]
[1736794448009,36.34311205,175.83,175.7,97.64]
[1736794448204,36.34311205,175.83,175.71,2.8468]
[1736794448612,36.34311205,175.83,175.7,97.64]
[1736794448910,2.846,175.77,175.72,2.8465]
[1736794449109,36.34311205,175.83,175.7,97.64]
[1736794449305,36.34311205,175.83,175.67,45.93041205]
[1736794449504,36.34311205,175.83,175.71,2.8468]
[1736794450207,36.34311205,175.83,175.67,45.93041205]
[1736794450208,36.34311205,175.8,175.69,2.847]
[1736794450610,36.34311205,175.8,175.65,9.77024036]
[1736794450806,2.8459,175.77,175.71,2.8467]
[1736794451208,2.8459,175.77,175.67,36.34311205]
[1736794451408,2.8457,175.79,175.67,22.3955251]
[1736794451604,22.3955251,175.83,175.67,22.3955251]
[1736794452008,2.8456,175.79,175.74,2.8462]
[1736794452408,2.8456,175.79,175.67,22.3955251]
[1736794452721,22.3955251,175.83,175.67,22.3955251]
[1736794453019,22.3955251,175.8,175.67,22.3955251]
[1736794453206,22.3955251,175.8,175.65,9.77024036]
[1736794453414,2.8469,175.71,175.67,2.8474]
[1736794454418,2.8469,175.71,175.64,22.3955251]
[1736794454722,2.8469,175.71,175.68,2.8473]
[1736794455019,3.2967,175.76,175.64,22.3955251]
[1736794455020,2.8464,175.74,175.7,2.847]
[1736794455817,3.2967,175.76,175.64,22.3955251]
[1736794456517,2.847,175.71,175.67,2.8475]
[1736794456721,2.847,175.71,175.64,22.3955251]
[1736794456914,22.3955251,175.74,175.61,3.3255]
[1736794457224,22.3955251,175.74,175.6,97.64]
[1736794457621,2.8478,175.66,175.62,2.8483]
[1736794458117,2.8478,175.65,175.61,2.8484]
[1736794458415,22.3955251,175.74,175.6,97.64]
[1736794458622,2.8475,175.67,175.62,2.8481]
[1736794458823,2.8475,175.67,175.6,97.64]
[1736794459024,22.3955251,175.74,175.6,97.64]